bitfinex-derivatives/quotes_SOLF0:USTF0_20250501
["timestamp","ask_amount","ask_price","bid_price","bid_amount"]
[1746092221468,6.5992,151.51,151.48,6.6003]
[1746092221659,6.5997,151.5,151.48,6.6003]
[1746092221860,25.32,151.5,151.42,25.32]
[1746092222060,6.6009,151.47,151.42,25.32]
[1746092222265,2.0907,151.49,151.42,25.32]
[1746092222472,2.0907,151.49,151.44,6.6022]
[1746092222674,6.6012,151.47,151.42,25.32]
[1746092222874,2.0907,151.49,151.42,25.32]
[1746092223076,6.6006,151.48,151.45,6.6015]
[1746092223277,6.6006,151.48,151.42,25.32]
[1746092225273,2.0907,151.49,151.42,25.32]
[1746092225479,25.32,151.51,151.42,25.32]
[1746092225681,1.9476,151.54,151.43,6.43730166]
[1746092225976,6.5989,151.52,151.42,25.32]
[1746092226182,6.5989,151.52,151.49,6.5998]
[1746092226565,6.5985,151.53,151.5,6.5995]
[1746092226769,31.9185,151.53,151.5,6.5995]
[1746092226976,25.32,151.53,151.42,37.86764367]
[1746092227179,6.5988,151.52,151.49,6.5997]
[1746092227678,6.5993,151.51,151.48,6.6003]
[1746092227870,25.32,151.53,151.42,37.86764367]
[1746092228069,25.32,151.53,151.43,6.46411534]
[1746092228070,6.5999,151.5,151.43,6.46411534]
[1746092228266,6.5999,151.5,151.44,6.46481214]
[1746092228466,6.5999,151.5,151.45,6.46481214]
[1746092228671,6.5999,151.5,151.46,6.46481214]
[1746092228871,1.9476,151.54,151.47,6.46481214]
[1746092229073,25.32,151.53,151.42,37.86764367]
[1746092229272,25.32,151.53,151.43,6.4755185]
[1746092229477,25.32,151.53,151.44,6.4755185]
[1746092229671,25.32,151.53,151.45,6.4755185]
[1746092229876,25.32,151.53,151.46,6.4755185]
[1746092230079,25.32,151.53,151.42,37.86764367]
[1746092230379,31.9187,151.53,151.42,37.86764367]
[1746092230975,31.9187,151.53,151.5,6.5995]
[1746092231375,6.5988,151.52,151.5,6.5995]
[1746092231874,31.9185,151.53,151.51,6.5992]
[1746092232281,25.32,151.53,151.42,37.86764367]
[1746092232478,25.32,151.53,151.51,6.5988]
[1746092232679,25.32,151.53,151.46,25.32]
[1746092233680,25.32,151.53,151.52,6.5987]
[1746092233980,25.32,151.53,151.46,25.32]
[1746092234377,8.5456,151.54,151.46,25.32]
[1746092234582,1.9476,151.54,151.52,6.5984]
[1746092235078,6.5985,151.53,151.46,25.32]
[1746092235382,1.9476,151.54,151.51,6.5991]
[1746092235582,8.5457,151.54,151.51,6.5991]
[1746092235880,1.9476,151.54,151.51,6.5991]
[1746092236081,6.5985,151.53,151.51,6.5991]
[1746092236384,1.9476,151.54,151.51,6.5991]
[1746092236683,8.5457,151.54,151.51,6.5991]
[1746092236982,8.5457,151.54,151.52,6.5987]
[1746092237681,1.9476,151.54,151.53,6.5983]
[1746092238185,1.9476,151.54,151.52,6.5986]
[1746092238484,1.9476,151.54,151.46,25.32]
[1746092238785,8.5456,151.54,151.51,6.5988]
[1746092239085,1.9476,151.54,151.46,25.32]
[1746092239884,8.5459,151.54,151.46,25.32]
[1746092240387,1.9476,151.54,151.52,6.5984]
[1746092240683,1.9476,151.54,151.46,25.32]
[1746092240880,8.5455,151.54,151.46,25.32]
[1746092241386,1.9476,151.54,151.46,25.32]
[1746092242286,6.5983,151.53,151.51,6.599]
[1746092242788,8.5457,151.54,151.51,6.599]
[1746092242987,1.9476,151.54,151.5,6.5994]
[1746092243389,1.9476,151.54,151.46,25.32]
[1746092243595,1.9476,151.54,151.5,6.5993]
[1746092243887,1.9476,151.54,151.46,25.32]
[1746092244380,14.49524367,151.54,151.43,24.8]
[1746092244585,14.49524367,151.54,151.4,24.8]
[1746092244782,14.49524367,151.54,151.37,61.08879264]
[1746092244783,12.54764367,151.51,151.37,85.88879264]
[1746092244977,24.8,151.5,151.37,85.88879264]
[1746092245489,6.6025,151.44,151.37,85.88879264]
[1746092245678,24.8,151.45,151.37,85.88879264]
[1746092245879,24.8,151.45,151.41,6.6032]
[1746092246083,31.402,151.45,151.37,85.88879264]
[1746092246289,31.402,151.45,151.42,6.6031]
[1746092246887,24.8,151.45,151.43,6.6026]
[1746092247183,24.8,151.45,151.37,24.8]
[1746092247390,24.8,151.49,151.47,6.6007]
[1746092247889,24.8,151.49,151.41,24.8]
[1746092247890,24.8,151.49,151.48,6.6005]
[1746092248092,24.8,151.49,151.41,24.8]
[1746092248478,4.0765,151.48,151.41,24.8]
[1746092249189,4.0765,151.48,151.43,6.6026]
[1746092249390,4.0765,151.48,151.38,24.8]
[1746092249590,6.6021,151.45,151.38,24.8]
[1746092249788,1.9272,151.47,151.38,24.8]
[1746092249987,4.0765,151.48,151.38,24.8]
[1746092249988,10.6771,151.48,151.38,24.8]
[1746092250185,1.9272,151.53,151.42,12.54764367]
[1746092250388,1.9272,151.53,151.43,24.8]
[1746092250583,6.5994,151.51,151.43,24.8]
[1746092250985,1.9272,151.53,151.43,24.8]
[1746092251284,6.599,151.52,151.43,24.8]
[1746092251479,6.599,151.52,151.49,6.5998]
[1746092253387,1.9272,151.53,151.43,24.8]
[1746092253592,24.8,151.54,151.43,24.8]
[1746092253986,24.8,151.54,151.51,6.5991]
[1746092254494,31.3981,151.54,151.51,6.5991]
[1746092254686,24.8,151.54,151.51,6.5991]
[1746092255093,6.5983,151.53,151.5,6.5994]
[1746092255393,24.8,151.54,151.43,24.8]
[1746092255593,31.3982,151.54,151.51,6.5989]
[1746092256193,6.5983,151.53,151.51,6.5989]
[1746092256398,24.8,151.54,151.51,6.5989]
[1746092256887,31.3981,151.54,151.51,6.5989]
[1746092257097,24.8,151.54,151.47,24.8]
[1746092257691,6.5985,151.53,151.5,6.5994]
[1746092257893,24.8,151.54,151.5,6.5994]
[1746092258391,24.8,151.54,151.47,24.8]
[1746092258696,6.5986,151.53,151.49,6.6]
[1746092259195,24.8,151.54,151.49,6.6]
[1746092259493,6.5985,151.53,151.5,6.5996]
[1746092259695,24.8,151.54,151.47,24.8]
[1746092259888,24.8,151.54,151.47,31.4007]
[1746092260382,24.8,151.54,151.44,24.8]
[1746092260582,6.5993,151.51,151.48,6.6003]
[1746092260786,24.8,151.54,151.44,24.8]
[1746092261083,6.5989,151.52,151.49,6.5998]
[1746092261696,6.5992,151.51,151.49,6.5998]
[1746092261993,24.8,151.54,151.49,6.5998]
[1746092262398,6.5991,151.52,151.49,6.5998]
[1746092262696,24.8,151.54,151.48,6.6003]
[1746092263396,6.5993,151.51,151.48,6.6003]
[1746092264997,24.8,151.54,151.48,6.6003]
[1746092265299,24.8,151.54,151.49,6.5998]
[1746092265687,24.8,151.54,151.44,24.8]
[1746092265889,24.8,151.54,151.51,6.5992]
[1746092266200,31.3983,151.54,151.51,6.5992]
[1746092266698,6.5983,151.53,151.51,6.5992]
[1746092266899,6.5983,151.53,151.5,6.5994]
[1746092267396,31.398,151.54,151.44,24.8]
[1746092267599,6.598,151.54,151.51,6.5989]
[1746092268798,6.598,151.54,151.48,24.8]
[1746092268997,3.9644,151.56,151.48,24.8]
[1746092269804,6.5991,151.52,151.49,6.5998]
[1746092271099,6.5993,151.51,151.48,31.4003]
[1746092271304,24.46,151.53,151.45,24.46]
[1746092272004,6.5994,151.51,151.48,6.6005]
[1746092273407,6.5998,151.5,151.48,6.6005]
[1746092273805,24.46,151.53,151.49,6.6]
[1746092274006,24.46,151.53,151.45,24.46]
[1746092274509,6.5994,151.51,151.48,6.6004]
[1746092274910,24.46,151.53,151.45,24.46]
[1746092275109,24.46,151.53,151.42,24.46]
[1746092275308,1.9081,151.52,151.42,24.46]
[1746092276301,6.6001,151.49,151.46,6.6013]
[1746092277307,6.5997,151.5,151.47,6.6008]
[1746092277510,1.9081,151.52,151.42,24.46]
[1746092278307,8.507,151.52,151.49,6.5998]
[1746092280010,24.46,151.53,151.43,13.2051]
[1746092280411,24.46,151.53,151.51,6.5992]
[1746092281714,31.0585,151.53,151.51,6.5992]
[1746092282307,24.46,151.53,151.51,6.5992]
[1746092283016,24.46,151.53,151.52,6.5987]
[1746092283208,6.5975,151.55,151.46,24.46]
[1746092283411,28.4244,151.56,151.46,24.46]
[1746092283610,28.4244,151.56,151.53,6.5981]
[1746092283813,28.4244,151.56,151.46,24.46]
[1746092284008,6.5986,151.53,151.5,6.5994]
[1746092285414,28.4244,151.56,151.46,24.46]
[1746092285805,28.4244,151.56,151.52,6.5985]
[1746092286010,6.5977,151.55,151.46,24.46]
[1746092286211,28.4244,151.56,151.46,24.46]
[1746092286414,26.3843,151.56,151.46,24.46]
[1746092287318,6.5975,151.55,151.46,24.46]
[1746092287918,26.3843,151.56,151.46,24.46]
[1746092288517,6.5983,151.53,151.5,6.5996]
[1746092288717,26.3843,151.56,151.5,6.5996]
[1746092289919,26.3843,151.56,151.46,24.46]
[1746092290418,6.5976,151.55,151.52,6.5985]
[1746092290611,26.3843,151.56,151.52,6.5985]
[1746092290811,26.3843,151.56,151.46,24.46]
[1746092291319,6.5982,151.54,151.51,6.599]
[1746092292119,6.5982,151.54,151.46,24.46]
[1746092292120,6.5977,151.55,151.46,24.46]
[1746092292320,26.3843,151.56,151.46,24.46]
[1746092292619,32.9813,151.56,151.54,6.5976]
[1746092292820,1.9851,151.58,151.5,24.46]
[1746092293118,1.9851,151.58,151.51,24.46]
[1746092293320,6.5966,151.57,151.55,6.5972]
[1746092293920,6.5966,151.57,151.54,6.5977]
[1746092294825,1.9851,151.58,151.54,6.5977]
[1746092295422,31.0559,151.59,151.51,24.46]
[1746092295622,24.46,151.59,151.51,24.46]
[1746092295924,6.5968,151.57,151.54,6.5976]
[1746092296825,6.5971,151.56,151.54,6.5976]
[1746092297026,24.46,151.59,151.54,6.5976]
[1746092297325,6.597,151.57,151.54,6.5976]
[1746092297927,24.46,151.59,151.54,6.5976]
[1746092298327,24.46,151.59,151.53,6.5982]
[1746092298624,24.46,151.59,151.51,24.46]
[1746092299020,6.5975,151.55,151.51,24.46]
[1746092299220,24.46,151.59,151.51,24.46]
[1746092299527,24.46,151.59,151.48,24.14]
[1746092299922,24.46,151.59,151.48,37.3409]
[1746092300220,3.9749,151.61,151.58,6.5961]
[1746092300416,3.9749,151.61,151.54,24.14]
[1746092300615,3.9749,151.61,151.59,6.5956]
[1746092302630,10.5702,151.61,151.58,6.5957]
[1746092304627,522.78,151.66,151.54,24.14]
[1746092304829,24.14,151.65,151.54,24.14]
[1746092305133,6.5943,151.63,151.6,6.5953]
[1746092305731,24.14,151.65,151.59,6.5955]
[1746092305927,24.14,151.65,151.54,24.14]
[1746092306328,36.68764367,151.65,151.54,24.14]
[1746092307432,24.14,151.65,151.54,24.14]
[1746092307933,6.5938,151.64,151.61,6.5945]
[1746092309231,30.7333,151.65,151.62,6.5944]
[1746092309928,10.5484,151.66,151.63,6.5938]
[1746092310130,10.5484,151.66,151.58,24.14]
[1746092310730,6.5923,151.67,151.58,24.14]
[1746092311336,30.732,151.68,151.58,24.14]
[1746092311738,30.732,151.68,151.65,6.5928]
[1746092312037,6.5924,151.67,151.65,6.5928]
[1746092312239,24.14,151.68,151.64,6.5932]
[1746092312439,6.5927,151.66,151.64,6.5932]
[1746092312642,6.5927,151.66,151.58,24.14]
[1746092312843,24.14,151.68,151.62,6.5942]
[1746092313038,6.5937,151.64,151.62,6.5942]
[1746092313437,24.14,151.68,151.62,6.5942]
[1746092314138,24.14,151.68,151.61,6.5947]
[1746092314942,6.5934,151.65,151.61,6.5947]
[1746092315337,6.5934,151.65,151.62,6.5941]
[1746092315542,6.5936,151.64,151.58,24.14]
[1746092315743,24.14,151.68,151.6,6.595]
[1746092315945,6.5942,151.63,151.6,6.595]
[1746092316947,6.5942,151.63,151.58,24.14]
[1746092317252,24.14,151.65,151.58,24.14]
[1746092317454,24.14,151.65,151.58,30.7359]
[1746092317654,24.14,151.65,151.55,24.14]
[1746092318153,6.5946,151.62,151.59,6.5955]
[1746092318355,6.5946,151.62,151.55,24.14]
[1746092318648,24.14,151.65,151.6,6.5952]
[1746092319842,6.5945,151.62,151.6,6.5952]
[1746092320855,6.5942,151.63,151.6,6.5952]
[1746092321351,6.5937,151.64,151.55,24.14]
[1746092321555,16.51274367,151.7,151.55,24.14]
[1746092321757,24.14,151.69,151.55,24.14]
[1746092322051,6.5925,151.67,151.64,6.5932]
[1746092322254,24.14,151.69,151.56,13.1935]
[1746092322451,6.5931,151.65,151.62,6.5941]
[1746092322653,6.5931,151.65,151.56,13.1935]
[1746092323957,24.14,151.69,151.56,13.1935]
[1746092324157,24.14,151.69,151.61,6.5944]
[1746092324352,24.14,151.69,151.56,13.1935]
[1746092325059,24.14,151.69,151.61,6.5945]
[1746092325256,24.14,151.69,151.56,13.1935]
[1746092325553,6.5934,151.65,151.56,13.1935]
[1746092326059,6.5934,151.65,151.63,6.5938]
[1746092326251,6.5928,151.66,151.59,24.14]
[1746092326451,24.14,151.69,151.59,24.14]
[1746092326658,24.14,151.69,151.63,6.5937]
[1746092327359,3.9651,151.7,151.63,6.5937]
[1746092327558,24.14,151.69,151.63,6.5937]
[1746092327760,24.14,151.69,151.64,6.5935]
[1746092328153,24.14,151.69,151.59,24.14]
[1746092328459,24.14,151.69,151.64,6.5933]
[1746092329460,24.14,151.69,151.65,6.5931]
[1746092329662,24.14,151.69,151.59,24.14]
[1746092329861,6.5924,151.67,151.59,24.14]
[1746092330051,6.5924,151.67,151.64,6.5933]
[1746092330959,6.5924,151.67,151.65,6.593]
[1746092331260,6.5921,151.68,151.65,6.593]
[1746092331558,23.94,151.69,151.65,6.593]
[1746092331958,6.5925,151.67,151.64,6.5933]
[1746092332357,6.5929,151.66,151.64,6.5933]
[1746092332557,6.5929,151.66,151.63,6.5938]
[1746092332858,23.94,151.69,151.63,6.5938]
[1746092333559,6.5933,151.65,151.62,6.5942]
[1746092333958,6.5933,151.65,151.63,6.5939]
[1746092334158,6.5929,151.66,151.63,6.5939]
[1746092334963,23.94,151.69,151.59,24.14]
[1746092335464,6.5922,151.68,151.65,6.5929]
[1746092335858,23.94,151.69,151.65,6.5929]
[1746092336064,6.5919,151.68,151.65,6.5929]
[1746092336663,6.5923,151.67,151.65,6.5929]
[1746092336960,3.9651,151.7,151.6,7.82875192]
[1746092337165,3.9651,151.7,151.63,7.82875192]
[1746092337465,23.94,151.72,151.63,7.82875192]
[1746092337659,30.5303,151.72,151.63,7.82875192]
[1746092338161,1.9173,151.74,151.63,7.82875192]
[1746092338365,1.9173,151.74,151.65,7.82875192]
[1746092338566,1.9173,151.74,151.66,23.94]
[1746092338766,6.59,151.73,151.69,6.5911]
[1746092338960,1.9173,151.74,151.69,6.5911]
[1746092339158,1.9173,151.74,151.66,23.94]
[1746092339362,1.9173,151.74,151.7,6.5909]
[1746092339866,6.5896,151.73,151.69,6.5912]
[1746092340169,1.9173,151.74,151.66,23.94]
[1746092340371,1.9173,151.74,151.7,6.5909]
[1746092340571,23.94,151.78,151.66,36.45350919]
[1746092340958,6.5884,151.76,151.72,6.59]
[1746092341269,23.94,151.78,151.7,23.94]
[1746092341468,3.871,151.79,151.72,6.5898]
[1746092341769,3.871,151.79,151.7,23.94]
[1746092341962,3.871,151.79,151.73,6.5893]
[1746092342163,3.871,151.79,151.7,23.94]
[1746092344674,6.5887,151.76,151.72,6.59]
[1746092344970,3.871,151.79,151.7,23.94]
[1746092345170,6.5886,151.76,151.72,6.59]
[1746092345671,3.871,151.79,151.7,23.94]
[1746092345971,6.5889,151.75,151.71,6.5901]
[1746092346170,6.5889,151.75,151.7,23.94]
[1746092346370,3.871,151.79,151.7,23.94]
[1746092346563,1.14705737,151.87,151.73,12.51350919]
[1746092346768,4.1739,151.88,151.76,12.51350919]
[1746092346970,4.1739,151.88,151.83,6.5852]
[1746092347165,4.1739,151.88,151.81,23.94]
[1746092347972,16.68740919,151.88,151.78,23.94]
[1746092348573,6.5861,151.82,151.78,23.94]
[1746092348871,16.68740919,151.88,151.74,23.92]
[1746092348872,23.92,151.84,151.74,23.92]
[1746092349065,6.5869,151.8,151.74,23.92]
[1746092349262,1.9165,151.81,151.74,23.92]
[1746092349677,6.5877,151.78,151.74,30.5092]
[1746092349969,2.0172,151.8,151.74,23.92]
[1746092350374,2.0172,151.8,151.71,23.92]
[1746092350669,36.43350919,151.79,151.68,23.92]
[1746092350871,2.0172,151.8,151.69,23.92]
[1746092351174,2.0172,151.8,151.7,23.92]
[1746092351175,25.9372,151.8,151.7,23.92]
[1746092351370,6.5879,151.77,151.72,6.5897]
[1746092351677,25.9372,151.8,151.7,23.92]
[1746092351866,6.5879,151.77,151.7,23.92]
[1746092352176,25.9372,151.8,151.7,23.92]
[1746092352371,6.5886,151.76,151.71,6.5902]
[1746092352677,6.5886,151.76,151.7,23.92]
[1746092353173,6.5889,151.75,151.71,6.5904]
[1746092353372,25.9372,151.8,151.71,6.5904]
[1746092353870,25.9372,151.8,151.7,30.5108]
[1746092354075,25.9372,151.8,151.7,23.92]
[1746092354573,25.9372,151.8,151.72,6.59]
[1746092355876,6.588,151.77,151.72,6.59]
[1746092356076,25.9372,151.8,151.7,23.92]
[1746092356471,6.5875,151.78,151.73,6.5893]
[1746092357271,6.5875,151.78,151.7,23.92]
[1746092357779,6.5875,151.78,151.73,6.5893]
[1746092358079,6.5872,151.79,151.7,23.92]
[1746092358476,6.5872,151.79,151.75,6.5887]
[1746092358877,6.5872,151.79,151.74,30.5091]
[1746092359078,6.5875,151.78,151.74,30.5091]
[1746092359279,25.9372,151.8,151.74,23.92]
[1746092359585,25.9372,151.8,151.74,30.5091]
[1746092359777,6.5873,151.79,151.74,30.5091]
[1746092360281,25.9372,151.8,151.75,6.5886]
[1746092360282,32.5238,151.8,151.75,6.5886]
[1746092360576,32.5238,151.8,151.74,23.92]
[1746092360879,25.9372,151.8,151.76,6.5879]
[1746092361080,2.0172,151.8,151.74,23.92]
[1746092361677,1.9165,151.81,151.74,23.92]
[1746092361869,26.5848,151.83,151.74,23.92]
[1746092362276,3.9719,151.85,151.74,23.92]
[1746092363481,3.9719,151.85,151.84,6.5848]
[1746092364178,3.9719,151.85,151.83,6.5851]
[1746092364684,6.5831,151.89,151.79,24.58]
[1746092364875,3.9759,151.89,151.79,24.58]
[1746092365378,6.5834,151.88,151.79,24.58]
[1746092365878,3.9759,151.89,151.79,24.58]
[1746092366276,6.5843,151.86,151.81,6.5858]
[1746092366683,6.5843,151.86,151.79,24.58]
[1746092366981,6.5845,151.85,151.82,6.5857]
[1746092367176,3.9759,151.89,151.79,24.58]
[1746092367377,3.9759,151.89,151.81,6.5857]
[1746092367579,3.9759,151.89,151.79,24.58]
[1746092367779,1.19015497,151.88,151.79,24.58]
[1746092368082,3.9759,151.89,151.79,24.58]
[1746092368282,1.19015873,151.88,151.8,6.5865]
[1746092368482,1.19015873,151.88,151.79,24.58]
[1746092368782,6.5849,151.84,151.81,6.586]
[1746092369985,6.5845,151.85,151.79,24.58]
[1746092370387,24.58,151.86,151.76,24.58]
[1746092370581,6.5857,151.82,151.76,24.58]
[1746092370778,1.9088,151.85,151.76,24.58]
[1746092370979,1.9088,151.85,151.77,6.5878]
[1746092371174,1.9088,151.85,151.76,24.58]
[1746092371578,6.5851,151.84,151.76,24.58]
[1746092371782,1.9088,151.85,151.76,24.58]
[1746092372079,6.5853,151.83,151.79,6.5868]
[1746092372687,1.9088,151.85,151.71,521.96]
[1746092372878,2.0728,151.82,151.72,24.58]
[1746092373081,1.9641,151.81,151.72,24.58]
[1746092373483,6.5872,151.79,151.76,6.5883]
[1746092373683,1.9641,151.81,151.72,24.58]
[1746092374079,6.5882,151.77,151.73,6.5893]
[1746092374284,6.5882,151.77,151.72,24.58]
[1746092374487,6.5882,151.77,151.74,6.5892]
[1746092374685,6.5882,151.77,151.72,24.58]
[1746092375993,6.5882,151.77,151.74,6.5889]
[1746092376189,1.9641,151.81,151.72,24.58]
[1746092376882,1.9641,151.81,151.73,6.5896]
[1746092377078,1.9641,151.81,151.72,24.58]
[1746092377291,1.9641,151.81,151.72,6.5899]
[1746092377489,1.19069685,151.8,151.69,24.58]
[1746092377790,6.5886,151.76,151.71,6.5904]
[1746092378990,6.5888,151.75,151.71,6.5904]
[1746092379192,24.58,151.77,151.69,24.58]
[1746092379691,1.8949,151.76,151.69,24.58]
[1746092380082,6.5899,151.73,151.69,31.1711]
[1746092380279,1.8949,151.76,151.69,24.58]
[1746092380483,6.5892,151.74,151.69,24.58]
[1746092381191,6.5899,151.73,151.7,6.5907]
[1746092381793,6.5901,151.72,151.69,31.1712]
[1746092381993,24.58,151.77,151.69,24.58]
[1746092382882,24.58,151.77,151.66,24.6]
[1746092383091,24.58,151.77,151.67,6.5922]
[1746092383493,6.5908,151.71,151.66,24.6]
[1746092383793,24.58,151.77,151.69,6.5913]
[1746092383995,6.5905,151.72,151.66,24.6]
[1746092384194,24.58,151.77,151.66,24.6]
[1746092385591,37.09350919,151.77,151.66,24.6]
[1746092385897,6.5917,151.69,151.66,24.6]
[1746092386099,24.6,151.73,151.66,24.6]
[1746092386289,1.973,151.72,151.63,24.6]
[1746092386791,6.5919,151.68,151.65,6.5931]
[1746092387198,1.973,151.72,151.66,6.5927]
[1746092387691,6.5916,151.69,151.66,6.5927]
[1746092388299,6.5916,151.69,151.63,24.6]
[1746092388796,6.5916,151.69,151.65,6.5929]
[1746092389191,1.973,151.72,151.63,24.6]
[1746092390291,6.5923,151.67,151.64,6.5933]
[1746092390491,1.973,151.72,151.63,24.6]
[1746092390987,6.5921,151.68,151.63,24.6]
[1746092391501,6.5921,151.68,151.64,6.5931]
[1746092391699,6.5923,151.67,151.64,6.5931]
[1746092392001,6.5923,151.67,151.63,24.6]
[1746092393399,6.5927,151.66,151.63,24.6]
[1746092393895,6.5926,151.67,151.64,6.5932]
[1746092394702,6.5929,151.66,151.63,31.1938]
[1746092395294,6.5924,151.67,151.64,6.5934]
[1746092395602,4.0696,151.72,151.64,6.5934]
[1746092395997,4.0696,151.72,151.65,6.593]
[1746092396604,6.592,151.68,151.65,6.593]
[1746092396902,4.0696,151.72,151.65,6.593]
[1746092397202,6.5921,151.68,151.65,6.593]
[1746092397402,4.0696,151.72,151.64,6.5933]
[1746092397604,4.0696,151.72,151.63,24.6]
[1746092397798,6.592,151.68,151.63,24.6]
[1746092398499,6.592,151.68,151.64,6.5933]
[1746092398706,6.592,151.68,151.63,24.6]
[1746092399005,6.592,151.68,151.65,6.5929]
[1746092400208,1.973,151.72,151.63,24.6]
[1746092400403,24.6,151.73,151.64,7.82486354]
[1746092400711,6.5905,151.71,151.64,7.82486354]
[1746092401102,2.0611,151.75,151.63,24.6]
[1746092401395,2.0611,151.75,151.66,6.5924]
[1746092401606,2.0611,151.75,151.63,24.6]
[1746092401907,6.5919,151.68,151.65,6.5929]
[1746092402102,24.52,151.72,151.63,24.6]
[1746092403111,24.52,151.72,151.64,6.5932]
[1746092403308,24.52,151.72,151.63,24.6]
[1746092403805,6.592,151.68,151.65,6.5929]
[1746092404009,24.52,151.72,151.63,24.52]
[1746092404405,6.5921,151.68,151.63,24.52]
[1746092404601,24.52,151.72,151.63,24.52]
[1746092404800,6.5925,151.67,151.64,6.5934]
[1746092405706,6.5925,151.67,151.65,6.5931]
[1746092405900,6.592,151.68,151.65,6.5931]
[1746092406311,6.592,151.68,151.66,6.5926]
[1746092406607,6.592,151.68,151.63,24.52]
[1746092406808,6.592,151.68,151.65,6.5928]
[1746092407911,6.5916,151.69,151.66,6.5926]
[1746092408409,1.9816,151.71,151.65,6.5929]
[1746092408610,1.9816,151.71,151.63,24.52]
[1746092409108,6.5921,151.68,151.64,6.5932]
[1746092409409,6.5921,151.68,151.63,24.52]
[1746092409804,6.5921,151.68,151.65,6.5929]
[1746092410005,6.5916,151.69,151.63,24.52]
[1746092410402,1.9816,151.71,151.63,24.52]
[1746092410706,6.5911,151.7,151.67,6.5919]
[1746092410909,2.0611,151.75,151.67,24.54]
[1746092411208,6.59,151.73,151.67,24.54]
[1746092412212,6.59,151.73,151.7,6.5908]
[1746092412812,6.5904,151.72,151.67,24.54]
[1746092413307,6.5906,151.71,151.68,6.5916]
[1746092413501,2.0611,151.75,151.67,24.54]
[1746092414400,6.5904,151.72,151.69,6.5913]
[1746092414604,2.0611,151.75,151.67,24.54]
[1746092414909,2.0611,151.75,151.69,6.5912]
[1746092415205,2.0611,151.75,151.67,24.54]
[1746092415613,6.5895,151.74,151.67,24.54]
[1746092415812,2.0611,151.75,151.67,24.54]
[1746092416307,6.5897,151.73,151.67,24.54]
[1746092416712,6.5897,151.73,151.7,6.5907]
[1746092417012,6.5902,151.72,151.67,24.54]
[1746092417420,6.5902,151.72,151.69,6.5911]
[1746092420114,24.24,151.73,151.61,370.5199814]
[1746092420309,24.24,151.73,151.62,24.24]
[1746092420509,1.9568,151.72,151.63,24.24]
[1746092420708,6.592,151.68,151.64,6.5932]
[1746092420911,1.8963,151.71,151.63,24.24]
[1746092421109,6.5916,151.69,151.66,6.5926]
[1746092421715,6.5916,151.69,151.63,24.24]
[1746092422015,6.591,151.7,151.63,24.24]
[1746092422217,6.591,151.7,151.67,6.592]
[1746092422911,6.5914,151.69,151.67,6.592]
[1746092423118,1.8963,151.71,151.63,24.24]
[1746092423618,9.72484504,151.71,151.63,24.24]